bitfinex-derivatives/quotes_ETHF0:USTF0_20250923
["timestamp","ask_amount","ask_price","bid_price","bid_amount"]
[1758636549594,0.7189,4197.8,4197.7,0.74389]
[1758636549793,0.022,4197.9,4197.8,0.46938]
[1758636549990,0.022,4197.9,4197.8,0.60018]
[1758636550394,0.022,4197.9,4197.8,0.78548425]
[1758636550689,0.022,4197.9,4197.8,4.60018]
[1758636550892,0.42839,4198.7,4198.0,1.07116]
[1758636551192,0.1323,4198.5,4198.1,0.25]
[1758636551502,0.1323,4198.5,4198.4,3.63622]
[1758636551503,0.4597,4198.5,4198.4,3.63622]
[1758636551704,0.4597,4198.5,4198.4,3.88622]
[1758636552398,0.4575,4199.0,4198.9,0.42837]
[1758636552606,0.4575,4199.0,4198.9,3.88617]
[1758636553503,0.4575,4199.0,4198.9,3.4578]
[1758636555705,0.4575,4199.0,4198.9,3.88617]
[1758636555904,0.88586,4199.0,4198.9,3.88617]
[1758636556104,0.88586,4199.0,4198.9,3.4578]
[1758636556400,0.8822,4199.0,4198.9,3.95077]
[1758636556597,0.4575,4199.0,4198.9,4.01537]
[1758636556799,0.88586,4199.0,4198.9,3.587]
[1758636556998,1.10516,4199.0,4198.9,3.587]
[1758636557295,0.42833,4199.4,4199.2,0.42834]
[1758636557498,0.97503,4199.4,4199.3,0.3136]
[1758636557702,1.18043,4199.4,4199.3,0.3782]
[1758636558506,1.18043,4199.4,4199.3,0.80653]
[1758636558806,0.2193,4199.9,4199.8,0.49288]
[1758636559104,1.18037,4199.9,4199.8,0.49288]
[1758636559323,0.3274,4199.9,4199.8,0.55748]
[1758636559606,0.88576,4200.0,4199.9,0.55747]
[1758636559807,0.6768,4200.0,4199.9,0.55747]
[1758636560508,1.10506,4200.0,4199.9,0.1292]
[1758636561209,0.6768,4200.0,4199.9,0.55747]
[1758636561407,1.10506,4200.0,4199.9,0.55747]
[1758636561805,0.6768,4200.0,4199.9,0.55747]
[1758636562008,1.10506,4200.0,4199.9,0.1292]
[1758636562409,1.10506,4200.0,4199.9,0.55747]
[1758636562809,0.679,4200.5,4200.4,0.49282]
[1758636563007,0.679,4200.5,4200.4,0.55742]
[1758636563310,0.86392,4200.4,4200.3,0.249]
[1758636563510,0.7579,4200.4,4200.3,0.74233]
[1758636564005,0.7579,4200.4,4200.3,0.3141]
[1758636564006,1.18612,4200.4,4200.3,0.3141]
[1758636564410,1.18612,4200.4,4200.3,0.249]
[1758636567309,0.5409,4200.4,4200.3,0.80743]
[1758636567515,0.3222,4200.4,4200.3,0.80743]
[1758636567910,0.96912,4200.4,4200.3,0.3792]
[1758636568109,0.5409,4200.4,4200.3,0.80743]
[1758636568513,0.96912,4200.4,4200.3,0.80743]
[1758636568716,0.7579,4200.4,4200.3,0.3792]
[1758636569116,1.18612,4200.4,4200.3,0.3792]
[1758636569521,1.18612,4200.4,4200.3,0.80743]
[1758636569810,1.31596,4200.0,4199.9,3.2078]
[1758636570014,0.8877,4200.0,4199.9,3.4568]
[1758636570209,0.8877,4200.0,4199.9,3.88507]
[1758636570408,0.8877,4200.0,4199.9,3.95017]
[1758636570808,1.31596,4200.0,4199.9,3.95017]
[1758636571003,0.8877,4200.0,4199.9,3.95017]
[1758636571209,0.6707,4200.0,4199.9,4.01527]
[1758636572020,1.31596,4200.0,4199.9,3.95017]
[1758636572204,0.8877,4200.0,4199.9,3.95017]
[1758636573020,1.31596,4200.0,4199.9,3.95017]
[1758636573220,0.8877,4200.0,4199.9,3.95017]
[1758636573422,1.31596,4200.0,4199.9,3.95017]
[1758636573719,1.31596,4200.0,4199.9,3.88507]
[1758636574611,0.8877,4200.0,4199.9,3.88507]
[1758636574814,0.452,4200.0,4199.9,4.01527]
[1758636575519,0.1323,4200.5,4200.4,0.55842]
[1758636575717,0.1323,4200.5,4200.4,4.01522]
[1758636576013,0.4545,4200.5,4200.4,4.01522]
[1758636576314,0.3222,4200.5,4200.4,4.01522]
[1758636576515,0.3222,4201.4,4200.9,0.55837]
[1758636576711,0.3222,4201.9,4201.5,0.42811]
[1758636576911,0.3222,4201.9,4201.5,0.71781]
[1758636577112,0.3222,4202.3,4201.5,0.71781]
[1758636577512,0.3222,4202.3,4202.2,0.42803]
[1758636577714,0.3222,4202.3,4202.2,3.4568]
[1758636578219,0.1298,4202.5,4202.3,0.42802]
[1758636578622,0.3222,4202.8,4202.2,3.4568]
[1758636578919,0.3222,4202.8,4202.7,3.63578]
[1758636579121,0.3222,4202.8,4202.7,3.88478]
[1758636580223,0.75017,4202.8,4202.7,3.4568]
[1758636580417,0.3222,4202.8,4202.7,3.4568]
[1758636580821,0.3222,4202.8,4202.7,0.249]
[1758636581017,0.1298,4202.5,4202.2,3.63583]
[1758636581222,0.3222,4202.4,4202.3,0.67702]
[1758636581422,0.3222,4202.4,4202.3,0.249]
[1758636581920,0.1298,4202.5,4202.4,0.42801]
[1758636582119,0.452,4202.5,4202.4,0.42801]
[1758636582918,0.3222,4202.4,4202.3,0.249]
[1758636583925,0.3222,4202.3,4202.2,3.63583]
[1758636584127,0.3222,4202.3,4202.2,3.4568]
[1758636584728,0.3222,4202.3,4202.2,3.2078]
[1758636584922,0.75022,4202.3,4202.2,0.249]
[1758636585227,0.3222,4202.3,4202.2,0.249]
[1758636586018,0.1298,4202.0,4201.7,3.2078]
[1758636586216,0.96898,4201.8,4201.7,3.2729]
[1758636586415,1.18598,4201.8,4201.7,3.2078]
[1758636586621,0.2187,4201.3,4201.2,0.49323]
[1758636586826,0.5409,4201.3,4201.2,0.55833]
[1758636587122,0.1298,4201.5,4201.4,0.55832]
[1758636587321,0.55786,4202.0,4201.4,0.4199]
[1758636587626,0.75024,4202.2,4202.1,0.1302]
[1758636587827,0.96894,4202.2,4202.1,0.1302]
[1758636588022,1.18594,4202.2,4202.1,0.0651]
[1758636588720,0.3222,4202.8,4202.2,1.07009]
[1758636588920,0.022,4202.9,4202.8,0.0407]
[1758636589126,0.022,4202.9,4202.8,0.2897]
[1758636589318,0.022,4202.9,4202.8,4.2897]
[1758636589711,0.3222,4203.3,4203.2,0.42793]
[1758636589914,0.3222,4203.7,4203.6,0.42789]
[1758636590223,0.3222,4204.0,4203.9,0.42786]
[1758636590425,0.452,4204.5,4204.4,0.42781]
[1758636590621,0.452,4204.5,4204.4,3.2078]
[1758636590822,0.42781,4204.4,4204.3,0.249]
[1758636591024,0.75001,4204.4,4204.3,0.249]
[1758636591828,0.3222,4204.4,4204.3,0.249]
[1758636593031,0.1298,4204.5,4204.4,0.42781]
[1758636593322,0.3123,4204.7,4204.5,0.4278]
[1758636593527,0.3123,4204.7,4204.6,0.248]
[1758636596721,0.3123,4204.9,4204.7,0.46808]
[1758636596921,0.3123,4205.4,4205.3,0.42771]
[1758636597124,0.3123,4205.4,4205.3,3.88351]
[1758636597627,0.3123,4205.8,4205.7,0.42768]
[1758636597824,0.3123,4205.8,4205.7,0.67568]
[1758636598525,0.3123,4205.8,4205.7,0.248]
[1758636598724,0.13,4205.5,4205.3,3.2078]
[1758636599028,0.3123,4205.8,4205.4,0.248]
[1758636599230,0.42767,4205.8,4205.5,0.4277]
[1758636599423,0.42769,4205.7,4205.4,0.248]
[1758636599628,0.4423,4205.5,4205.4,0.248]
[1758636600126,0.3123,4205.5,4205.4,0.248]
[1758636600325,0.42761,4206.4,4206.2,0.42763]
[1758636600528,0.3123,4206.4,4206.3,0.67561]
[1758636601324,0.3123,4206.4,4206.3,0.248]
[1758636601524,0.3123,4206.2,4206.1,3.2078]
[1758636601828,0.3123,4206.2,4206.1,3.4558]
[1758636602530,0.3123,4206.2,4206.1,0.248]
[1758636603028,0.73998,4205.7,4205.6,3.2078]
[1758636603834,0.42773,4205.2,4205.0,3.63555]
[1758636604029,0.3123,4205.1,4205.0,3.2078]
[1758636604226,0.3123,4205.1,4205.0,3.4558]
[1758636605435,0.3123,4205.1,4205.0,3.2078]
[1758636605928,0.3123,4205.1,4205.0,3.4558]
[1758636606121,0.3123,4205.1,4205.0,3.2078]
[1758636606324,0.4423,4204.0,4203.9,3.63566]
[1758636606526,0.4423,4204.0,4203.9,3.4558]
[1758636606731,0.4423,4205.0,4204.9,0.42776]
[1758636606926,0.4423,4205.0,4204.9,3.88356]
[1758636607127,0.4423,4205.0,4204.9,3.4558]
[1758636607327,0.4423,4205.0,4204.9,3.2078]
[1758636608127,0.13,4205.0,4204.9,3.2078]
[1758636608430,0.3123,4205.0,4204.9,3.4558]
[1758636608734,0.3123,4205.4,4205.3,0.42772]
[1758636608932,0.3123,4205.4,4205.3,0.248]
[1758636609727,0.42767,4205.8,4205.4,0.4277]
[1758636609934,0.73998,4205.7,4205.5,3.88349]
[1758636610131,0.3123,4205.6,4205.5,3.88349]
[1758636610431,0.3123,4205.6,4205.5,3.4558]
[1758636610632,0.42768,4205.7,4205.5,3.4558]
[1758636610835,0.3123,4205.6,4205.5,3.4558]
[1758636612129,0.3219,4205.9,4205.8,0.42767]
[1758636612325,0.3219,4205.9,4205.8,0.67567]
[1758636612739,0.3219,4205.9,4205.8,0.248]
[1758636614342,0.74959,4205.6,4205.5,3.4558]
[1758636614642,0.74959,4205.6,4205.5,3.2078]
[1758636615035,1.25929569,4205.6,4205.5,3.2078]
[1758636615439,1.25929569,4205.6,4204.2,3.63563]
[1758636615440,0.3219,4204.3,4204.2,3.63563]
[1758636615635,0.3219,4204.3,4204.2,3.2078]
[1758636615838,0.3219,4204.3,4204.2,3.4558]
[1758636616036,0.42785,4204.0,4203.7,3.2078]
[1758636616344,0.3219,4203.9,4203.8,0.248]
[1758636616529,0.74977,4203.8,4203.7,3.2078]
[1758636616736,0.74977,4203.8,4203.7,3.4558]
[1758636617241,0.74982,4203.3,4203.2,3.2078]
[1758636617437,0.74988,4202.8,4202.7,3.2078]
[1758636617738,0.3219,4202.8,4202.7,3.4558]
[1758636618140,0.3219,4203.3,4202.7,7.4558]
[1758636618441,1.06969,4203.8,4202.7,3.92398]
[1758636618642,0.42797,4202.9,4202.8,0.248]
[1758636618844,0.132,4203.0,4202.8,0.248]
[1758636619042,0.132,4203.5,4202.9,0.0402]
[1758636619352,0.132,4204.0,4203.2,3.2078]
[1758636619533,0.51186748,4203.9,4203.3,0.248]
[1758636619736,0.51186748,4203.8,4203.7,0.42788]
[1758636619937,0.51186748,4203.8,4203.7,0.248]
[1758636620132,0.93972748,4203.9,4203.7,0.248]
[1758636620338,0.83376748,4203.8,4203.7,0.248]
[1758636621644,0.132,4204.0,4203.8,0.42787]
[1758636621944,0.3219,4204.2,4204.1,0.42783]
[1758636622143,0.3219,4204.2,4204.1,0.67583]
[1758636622546,0.3219,4204.6,4204.5,0.4278]
[1758636622743,0.3219,4204.6,4204.5,0.248]
[1758636624243,0.323,4205.4,4204.7,1.06946]
[1758636624433,0.323,4205.4,4205.1,0.0403]
[1758636624639,0.455,4205.5,4205.3,0.42772]
[1758636624840,3.2078,4205.8,4205.7,0.46798]
[1758636625047,0.323,4206.1,4205.9,0.42766]
[1758636625245,3.5308,4206.4,4206.3,0.42762]
[1758636625439,3.5308,4206.4,4206.3,0.67562]
[1758636625835,3.5308,4206.4,4205.5,3.2078]
[1758636625836,3.2078,4206.4,4205.7,0.248]
[1758636626138,0.323,4205.6,4205.5,0.248]
[1758636626342,0.1259,4205.0,4204.9,3.2078]
[1758636626547,0.4489,4204.5,4204.4,3.2078]
[1758636626852,0.1259,4204.0,4203.8,3.4558]
[1758636627042,0.323,4204.0,4203.8,3.4558]
[1758636627248,0.323,4203.9,4203.8,3.4558]
[1758636627446,0.42781,4204.4,4203.8,3.4558]
[1758636627753,0.323,4204.5,4203.8,3.7441]
[1758636628043,3.63559,4204.7,4203.9,0.2883]
[1758636628241,3.2078,4204.7,4203.9,0.2883]
[1758636628448,3.76136,4206.0,4205.1,0.42773]
[1758636628747,0.42767,4205.8,4205.2,0.248]
[1758636628950,0.4489,4205.5,4205.4,3.2078]
[1758636629162,3.3337,4206.0,4205.4,3.2078]
[1758636629347,0.42766,4205.9,4205.4,3.6355]
[1758636629654,0.323,4205.9,4205.4,3.2078]
[1758636629851,0.323,4205.7,4205.4,3.4961]
[1758636630247,3.95845,4206.0,4205.4,3.4961]
[1758636630447,4.08435,4206.0,4205.4,3.9238]
[1758636630847,0.323,4206.2,4206.0,0.42764]
[1758636631050,0.323,4206.4,4206.1,0.248]
[1758636631244,0.75062,4206.4,4206.1,0.248]
[1758636631553,0.323,4206.2,4206.1,0.248]
[1758636634750,3.3337,4206.5,4206.1,0.67563]
[1758636634952,3.7613,4206.5,4206.1,0.248]
[1758636635257,0.323,4206.2,4206.1,0.248]
[1758636636051,0.1259,4207.0,4206.6,0.42758]
[1758636636259,0.1259,4207.0,4206.8,3.2078]
[1758636636260,0.323,4206.9,4206.8,3.2078]
[1758636636649,1.09065,4207.9,4207.0,0.42754]
[1758636636650,0.323,4207.2,4207.0,0.42754]
[1758636636954,0.022,4207.9,4207.3,0.42751]
[1758636637259,0.022,4207.9,4207.8,3.4961]
[1758636637456,0.022,4207.9,4207.8,3.7441]
[1758636639565,0.345,4207.9,4207.8,3.2078]
[1758636639752,0.345,4207.9,4207.3,3.63531]
[1758636639753,0.323,4207.5,4207.3,3.63531]
[1758636639957,0.323,4207.4,4207.3,3.2078]
[1758636640156,0.323,4207.4,4207.3,3.4558]
[1758636641170,0.323,4207.7,4207.3,4.17161]
[1758636641463,0.323,4207.7,4207.5,0.42749]
[1758636641666,0.323,4207.7,4207.6,0.248]
[1758636642865,1.0686,4208.1,4207.6,0.248]
[1758636642866,0.323,4209.1,4207.8,0.2883]
[1758636643066,0.323,4208.9,4208.5,0.2883]
[1758636643271,0.323,4208.9,4208.6,0.67538]
[1758636643461,3.2078,4209.6,4208.4,3.2078]
[1758636643663,3.2078,4209.6,4208.5,0.248]
[1758636643862,0.323,4208.9,4208.6,0.42737]
[1758636644068,3.2078,4209.6,4208.5,0.248]
[1758636644368,1.19416,4209.5,4208.4,3.2078]
[1758636644570,0.323,4208.6,4208.5,0.248]
[1758636645366,0.323,4208.4,4207.9,3.2078]
[1758636645573,0.1259,4208.5,4208.0,0.248]
[1758636645763,0.1259,4208.5,4208.1,0.42743]
[1758636645764,0.75041,4208.4,4208.1,0.42743]
[1758636645965,0.1259,4208.5,4208.0,0.248]
[1758636646166,0.1259,4208.5,4208.3,0.42741]
[1758636646475,0.1259,4208.5,4208.4,0.248]
[1758636646970,0.4489,4208.5,4208.4,0.248]
[1758636647873,0.323,4208.5,4208.4,0.248]
[1758636648263,0.4489,4208.5,4207.9,3.2078]
[1758636648481,0.4489,4208.0,4207.9,3.63525]
[1758636648668,0.4489,4208.0,4207.9,3.88325]
[1758636648868,0.4489,4208.5,4208.4,0.4274]
[1758636649073,0.4489,4208.5,4208.4,0.6754]
[1758636649574,0.323,4208.5,4208.4,3.8832]
[1758636649770,0.4489,4209.0,4208.9,0.42735]
[1758636649970,0.4489,4209.0,4208.9,3.2078]
[1758636650462,0.323,4209.0,4208.9,3.2078]
[1758636651770,0.4489,4209.5,4209.4,0.4273]
[1758636652164,0.323,4209.4,4209.3,0.248]
[1758636653374,0.55319,4209.5,4208.9,3.2078]
[1758636653375,0.4575,4209.0,4208.9,3.2078]
[1758636653677,0.4575,4209.0,4208.9,3.4558]
[1758636654078,0.3359,4209.0,4208.9,3.4558]
[1758636654278,0.4575,4209.0,4208.9,3.2078]
[1758636654470,0.88489,4208.5,4208.4,3.2078]
[1758636654775,0.4575,4208.5,4208.4,3.2078]
[1758636654969,0.4575,4208.5,4208.4,0.248]
[1758636655779,0.3359,4208.4,4208.3,0.42741]
[1758636655979,0.3359,4208.4,4208.3,0.67541]
[1758636656171,0.3359,4208.4,4208.3,0.248]
[1758636656377,0.76334,4208.0,4207.9,3.2078]
[1758636656672,0.88494,4208.0,4207.9,3.2078]
[1758636656982,0.3359,4207.2,4207.1,0.42753]
[1758636657180,0.3359,4207.2,4207.1,0.67553]
[1758636657576,3.3294,4208.0,4207.1,0.248]
[1758636657577,0.3359,4207.8,4207.1,0.248]
[1758636657882,0.3359,4207.2,4207.1,0.67553]
[1758636658079,0.3359,4207.2,4207.1,0.42753]
[1758636658275,0.3359,4207.2,4207.1,0.248]
[1758636658483,0.3359,4207.0,4206.9,0.42755]
[1758636658682,0.3359,4207.0,4206.9,0.67555]
[1758636659384,0.4575,4207.5,4207.4,0.42751]
[1758636659575,0.4575,4207.5,4207.4,0.67551]
[1758636659883,0.4575,4207.5,4207.4,0.248]
[1758636660179,0.1216,4208.0,4207.5,0.4275]
[1758636660385,0.1216,4207.5,4207.4,3.2078]
[1758636660678,0.3359,4207.5,4207.4,3.4558]
[1758636660883,4.09269,4208.5,4207.7,0.2875]
[1758636661076,0.3359,4208.4,4208.0,3.2078]
[1758636661383,0.3359,4208.3,4208.2,0.42742]
[1758636661882,0.3359,4208.8,4208.1,0.248]
[1758636662179,0.3359,4208.1,4208.0,3.2078]
[1758636662485,0.42738,4208.7,4208.5,0.42739]
[1758636662686,0.76327,4208.7,4208.6,0.248]
[1758636664180,1.27361293,4208.7,4208.6,0.248]
[1758636664883,0.84624293,4208.7,4208.6,0.67538]
[1758636665082,0.4575,4209.0,4208.6,0.248]
[1758636665287,0.51034736,4208.9,4208.7,0.2875]
[1758636665484,0.51066285,4208.8,4208.7,0.2875]
[1758636665787,0.3359,4209.1,4209.0,0.42734]
[1758636666085,0.76322,4209.3,4209.1,0.42732]
[1758636666279,0.84666626,4209.2,4209.1,0.42732]
[1758636666588,0.3359,4209.2,4209.1,0.42732]
[1758636666885,0.4273,4209.4,4209.2,0.42732]
[1758636667080,0.76322,4209.2,4209.1,0.42733]
[1758636667389,0.76322,4209.2,4209.0,3.4558]
[1758636667390,0.3359,4209.1,4209.0,3.4558]
[1758636667584,0.84660863,4209.1,4209.0,3.4558]
[1758636667783,0.1216,4209.5,4209.0,3.7433]
[1758636668091,0.76322,4209.3,4209.2,0.42732]
[1758636668388,0.42733,4209.2,4209.0,3.4558]
[1758636668694,0.84654851,4209.1,4209.0,3.2078]
[1758636668874,0.84654851,4209.1,4209.0,3.4558]
[1758636669380,0.84654851,4209.1,4209.0,3.2078]
[1758636669586,0.84654851,4209.1,4209.0,3.4558]
[1758636669784,0.5489,4209.5,4209.2,0.42732]
[1758636669975,0.84648525,4209.4,4209.3,0.248]
[1758636670179,1.27378525,4209.4,4209.3,0.248]
[1758636670888,1.27378525,4209.4,4209.3,0.67531]
[1758636671185,0.76321,4209.3,4209.2,0.42732]
[1758636671381,1.27379525,4209.3,4209.2,0.67532]
[1758636671783,0.93789525,4209.3,4209.2,0.96282]
[1758636671973,0.42731,4209.3,4209.2,5.20039]
[1758636672183,0.3036,4209.8,4209.7,0.42727]
[1758636672381,0.3036,4209.8,4209.7,0.67527]
[1758636674194,0.73086,4209.8,4209.7,0.248]
[1758636674582,0.3036,4209.8,4209.7,0.67527]
[1758636675482,3.2078,4209.9,4209.8,0.71476]
[1758636675685,3.2078,4209.9,4209.7,0.248]
[1758636675686,0.3036,4209.8,4209.7,0.248]
[1758636676080,0.3036,4209.8,4209.7,0.67526]
[1758636677387,3.2078,4209.9,4209.8,0.71476]
[1758636679085,2.76256416,4209.9,4209.8,4.9523]
[1758636679290,0.73076,4210.8,4210.3,0.2875]
[1758636679490,0.3036,4210.8,4210.7,0.42717]
[1758636679793,0.4284,4210.5,4210.4,0.248]
[1758636680388,0.4284,4210.5,4210.4,0.6752]
[1758636680592,0.3036,4210.9,4210.6,0.42718]
[1758636680891,0.42717,4210.8,4210.4,0.248]
[1758636681189,0.3036,4210.6,4210.5,0.71469]
[1758636681379,0.42717,4210.7,4210.6,0.42718]
[1758636681587,0.1216,4211.0,4210.6,0.42718]
[1758636681783,0.3036,4210.9,4210.4,0.67519]
[1758636681984,0.42718,4210.6,4210.5,0.2875]
[1758636682182,0.42715,4210.9,4210.5,0.2875]
[1758636682380,0.3036,4210.8,4210.7,0.42717]
[1758636682987,0.3239,4212.4,4210.8,0.2876]
[1758636683187,0.50863401,4212.3,4211.6,0.2876]
[1758636683396,0.3459,4212.9,4212.1,0.2876]
[1758636683689,0.022,4212.9,4212.2,0.5356]
[1758636683893,0.3239,4212.8,4211.5,0.0616]
[1758636684095,0.42699,4212.5,4211.8,0.42705]
[1758636684289,0.75097,4211.7,4211.1,0.2876]
[1758636684597,0.1262,4211.5,4211.2,0.248]
[1758636684794,0.3239,4211.4,4211.3,0.248]
[1758636685092,0.3239,4211.9,4210.8,0.23747]
[1758636685297,0.3239,4211.8,4210.9,0.061]
[1758636685597,0.3239,4211.4,4211.2,0.42712]
[1758636685795,0.1262,4211.5,4210.9,0.061]
[1758636685993,0.3239,4211.4,4210.0,38.5356]
[1758636686190,0.1262,4211.0,4210.5,0.42719]
[1758636686392,0.3239,4210.9,4210.2,1.06805]
[1758636686598,0.3239,4210.9,4210.7,0.42716]
[1758636686799,0.3239,4210.9,4210.8,0.248]
[1758636688092,0.1262,4211.0,4210.2,0.42722]
[1758636688093,0.3239,4210.4,4210.2,0.42722]
[1758636688291,0.1262,4211.0,4210.8,0.42716]
[1758636688292,0.3239,4210.9,4210.8,0.42716]
[1758636688491,0.1262,4211.5,4211.3,0.4271]
[1758636688691,0.3239,4211.4,4211.3,0.4271]
[1758636688898,1.06752,4212.4,4210.8,0.248]
[1758636688899,0.3239,4211.9,4211.8,0.42705]
[1758636689106,0.3239,4211.9,4211.8,0.67505]
[1758636690391,0.427,4212.4,4211.8,0.67505]
[1758636690603,0.3239,4212.4,4211.8,0.248]
[1758636690804,0.42701,4212.3,4211.8,0.248]
[1758636690994,0.3239,4212.2,4212.1,0.42702]
[1758636691700,0.1262,4212.5,4211.9,0.248]
[1758636691897,0.75091,4212.3,4212.1,0.42702]
[1758636692200,0.3239,4211.4,4210.8,0.42715]
[1758636692400,0.1262,4211.5,4210.9,0.248]
[1758636692592,0.3239,4211.4,4211.1,0.42712]
[1758636692801,0.42711,4211.3,4211.2,0.148]
[1758636692998,0.55329,4211.5,4211.2,0.148]
[1758636693199,0.55329,4211.5,4210.3,1.06802]
[1758636693200,0.1262,4211.5,4210.2,0.2876]
[1758636693401,0.1262,4211.0,4210.3,0.079]
[1758636693600,0.42717,4210.8,4210.4,0.4272]
[1758636693797,0.1262,4211.0,4210.6,0.42718]
[1758636693995,0.3239,4210.8,4210.7,0.248]
[1758636694398,0.42718,4210.6,4209.8,0.2876]
[1758636694602,0.1262,4210.5,4210.2,0.42722]
[1758636694901,0.55339,4210.5,4209.4,0.2876]
[1758636695104,0.42721,4210.3,4209.7,0.42727]
[1758636695307,0.42721,4210.4,4209.9,0.42725]
[1758636695701,0.3239,4210.9,4210.6,0.2876]
[1758636695901,0.42712,4211.3,4210.7,0.67517]
[1758636696201,0.751,4211.4,4210.8,0.248]
[1758636696397,0.3239,4211.2,4210.8,0.248]
[1758636696598,0.3239,4211.1,4210.8,0.5356]
[1758636696908,0.3239,4211.1,4210.8,0.248]
[1758636697110,0.3239,4211.1,4210.9,0.2876]
[1758636697404,0.42715,4210.9,4210.8,0.5356]
[1758636697703,0.87729,4210.5,4210.4,0.248]
[1758636698003,0.3239,4209.6,4209.4,0.4273]
[1758636698195,0.3239,4209.6,4209.0,3.2078]
[1758636698196,0.42728,4209.6,4209.5,0.248]
[1758636698395,1.06814,4209.9,4209.0,3.2078]
[1758636698601,0.42733,4209.2,4209.1,0.248]
[1758636698801,0.42733,4209.2,4209.0,3.2078]
[1758636698991,0.42733,4209.2,4209.0,3.4558]
[1758636698992,0.3239,4209.1,4209.0,3.4558]
[1758636699197,0.3239,4209.1,4209.0,3.2078]
[1758636699994,0.42726,4209.8,4209.1,0.2876]
[1758636700190,0.3239,4209.9,4209.8,0.42726]
[1758636700392,0.4501,4210.5,4209.8,0.248]
[1758636700596,0.3239,4209.9,4209.0,3.2078]
[1758636700795,0.3239,4209.2,4209.1,0.248]
[1758636701005,0.42726,4209.8,4209.5,0.42728]
[1758636701206,0.3239,4209.7,4209.5,0.42728]
[1758636701405,0.75117,4209.7,4209.3,0.42731]
[1758636701605,0.3239,4209.8,4209.1,0.248]
[1758636701806,0.3239,4209.7,4209.5,0.42729]
[1758636702001,0.42723,4210.1,4209.8,0.42726]
[1758636702208,0.75113,4210.1,4209.9,0.248]
[1758636702401,0.3239,4210.0,4209.9,0.248]
[1758636702598,0.3239,4210.0,4209.0,4.27616]
[1758636702599,0.3239,4209.9,4209.2,0.42732]
[1758636702798,0.75116,4209.8,4209.7,0.248]
[1758636703004,0.3239,4209.7,4209.1,0.2876]
[1758636703199,0.42723,4210.1,4209.3,0.2876]
[1758636703501,0.42722,4210.2,4209.8,0.42726]
[1758636703706,0.3239,4210.1,4209.9,0.248]
[1758636704008,0.4501,4210.0,4209.9,0.248]
[1758636704197,0.1262,4210.5,4209.9,0.248]
[1758636704403,0.42729,4209.6,4209.0,3.2078]
[1758636704599,0.75121,4209.4,4209.1,0.67533]
[1758636704802,0.3239,4209.1,4209.0,3.2078]
[1758636705804,4.3239,4209.1,4209.0,3.12769533]
[1758636706011,0.1262,4209.0,4208.7,0.248]
[1758636706207,0.3239,4208.7,4208.2,0.248]
[1758636706403,0.3239,4208.3,4208.2,0.248]
[1758636706599,0.42737,4208.8,4208.3,0.2876]
[1758636706810,0.42737,4208.8,4208.6,0.42738]
[1758636707004,0.3239,4208.8,4208.6,0.42738]
[1758636707311,0.42738,4208.7,4208.4,0.4274]
[1758636707512,0.3239,4208.6,4208.4,0.4274]
[1758636707706,0.75126,4208.9,4208.7,0.42737]
[1758636707910,0.3239,4208.9,4208.8,0.248]
[1758636709111,0.3239,4208.9,4207.8,1.35627]
[1758636709112,0.75133,4208.2,4207.8,0.42746]
[1758636709311,0.3239,4208.2,4206.9,0.42755]
[1758636709511,1.06854,4208.3,4206.4,2.75991176]
[1758636709512,0.3239,4207.7,4206.7,38.477]
[1758636709715,0.42752,4207.3,4206.8,0.249]
[1758636710016,0.3239,4207.1,4206.8,0.67656]
[1758636710206,0.3239,4207.3,4206.8,0.249]
[1758636710406,0.5537,4207.5,4206.8,0.249]
[1758636710609,0.3239,4207.4,4206.8,0.249]
[1758636710811,0.3239,4206.9,4206.4,0.4276]
[1758636711007,0.3239,4206.9,4206.8,0.67657]
[1758636711211,0.3239,4206.9,4206.8,0.249]
[1758636711406,4.3239,4206.9,4206.8,0.249]
[1758636711914,0.1262,4206.0,4205.8,0.249]
[1758636712215,0.42767,4205.8,4205.2,0.42772]
[1758636712414,0.3239,4205.7,4205.3,0.183]
[1758636712621,0.42769,4205.6,4205.3,0.183]
[1758636712814,0.3239,4205.4,4205.3,0.42772]
[1758636713125,0.3182,4205.4,4205.3,0.249]
[1758636713320,0.3182,4205.4,4204.3,0.249]
[1758636713321,0.42777,4204.9,4204.3,0.249]
[1758636713518,0.3182,4204.9,4203.0,0.0429]
[1758636713711,0.3182,4204.4,4203.1,0.3364]
[1758636713911,0.126,4204.5,4204.3,0.42781]
[1758636713912,0.4442,4204.5,4204.3,0.42781]
[1758636714111,0.3182,4204.4,4204.2,0.249]
[1758636714317,0.3182,4204.4,4204.3,0.42781]
[1758636715715,0.42776,4204.9,4204.4,0.4278]
[1758636715914,0.3182,4204.9,4204.6,0.42779]
[1758636716213,0.3182,4204.9,4204.2,0.249]
[1758636716413,0.3182,4204.9,4203.7,0.2884]
[1758636716414,0.3182,4204.9,4204.4,0.42781]
[1758636716618,0.3182,4204.9,4204.3,0.249]
[1758636716814,0.126,4205.0,4204.8,0.42776]
[1758636717017,0.3182,4204.9,4204.8,0.42776]
[1758636717919,0.126,4205.0,4204.8,0.42776]